bitfinex-derivatives/quotes_ETHF0:USTF0_20240927
["timestamp","ask_amount","ask_price","bid_price","bid_amount"]
[1727395201735,1.39855311,2633.1,2633.0,1.15553922]
[1727395203545,0.403,2633.1,2632.9,1.8789834]
[1727395204543,0.403,2633.1,2632.9,1.4889834]
[1727395206556,2.39400742,2633.1,2632.7,1.4889834]
[1727395208157,2.39400742,2633.1,2632.8,0.4133]
[1727395211049,1.99100742,2633.1,2632.8,0.4133]
[1727395211550,3.28665928,2633.2,2632.8,0.4133]
[1727395211856,0.4021,2633.1,2633.0,1.98636748]
[1727395212058,0.4021,2633.1,2633.0,5.45468011]
[1727395212456,0.4021,2633.1,2633.0,3.46831263]
[1727395212756,0.4021,2633.1,2633.0,3.85411263]
[1727395213351,0.4021,2633.1,2633.0,5.8401457]
[1727395213550,0.9959461,2633.3,2633.0,13.34099674]
[1727395213756,0.9959461,2633.5,2633.2,2.48148411]
[1727395214053,0.9959461,2633.7,2633.4,2.48148411]
[1727395214251,8.91291915,2633.7,2633.5,2.64436979]
[1727395214455,4.2028,2633.6,2633.3,1.48826558]
[1727395214647,4.70144792,2633.4,2633.1,1.48826558]
[1727395214953,1.4101553,2633.3,2633.2,2.64403411]
[1727395215653,5.2077553,2633.3,2633.2,1.15576853]
[1727395215859,5.2077553,2633.3,2633.2,2.64403411]
[1727395216353,5.2077553,2633.3,2633.2,1.15576853]
[1727395216553,5.2077553,2633.3,2633.2,1.48826558]
[1727395216749,5.70564792,2633.3,2633.2,1.15583126]
[1727395217352,4.212,2633.3,2633.2,1.15593719]
[1727395217654,6.20300742,2633.3,2633.0,1.48826558]
[1727395217847,0.99587644,2633.1,2633.0,1.48826558]
[1727395218052,0.99587644,2633.1,2633.0,2.64435984]
[1727395218859,1.80427644,2633.2,2633.0,1.15609426]
[1727395219054,1.80427644,2633.2,2633.1,2.64565731]
[1727395219255,0.8084,2633.2,2633.1,2.64565731]
[1727395219451,1.80425211,2633.2,2633.1,2.64565731]
[1727395219659,1.80423593,2633.2,2633.1,2.64565731]
[1727395220061,0.8084,2633.2,2633.1,1.15609426]
[1727395220359,1.80423593,2633.2,2633.1,1.15609426]
[1727395220565,1.80423593,2633.2,2633.1,2.64556211]
[1727395220954,1.80423593,2633.2,2633.1,1.15609426]
[1727395221559,0.8084,2633.2,2633.1,3.14117695]
[1727395222267,0.4021,2633.2,2633.1,3.14117695]
[1727395222560,0.4021,2633.2,2633.1,5.45287547]
[1727395223162,0.4021,2633.2,2633.1,3.46779278]
[1727395223566,0.4021,2633.2,2633.1,5.4531838]
[1727395223960,0.4021,2633.2,2633.1,3.14148528]
[1727395224165,0.4021,2633.2,2633.1,2.31187188]
[1727395224365,0.4021,2633.2,2633.1,2.64510897]
[1727395224667,1.39793593,2633.2,2633.1,2.64510897]
[1727395224865,1.39793593,2633.2,2633.1,2.64507053]
[1727395224866,0.4021,2633.2,2633.1,2.64507053]
[1727395225056,0.4021,2633.2,2633.1,2.64507591]
[1727395225263,0.4021,2633.2,2633.1,1.15577762]
[1727395225463,0.4021,2633.2,2633.1,2.64508613]
[1727395226065,0.4021,2633.2,2633.1,1.15577762]
[1727395226268,1.39793593,2633.2,2633.1,2.64510793]
[1727395227767,0.4021,2633.2,2633.1,2.64510793]
[1727395228162,0.4021,2633.2,2633.0,1.122]
[1727395228163,10.1997,2633.2,2633.0,0.99310317]
[1727395228359,9.39290742,2633.1,2632.8,0.99310317]
[1727395228564,9.39290742,2633.1,2632.7,0.99310317]
[1727395228565,1.99198079,2633.0,2632.7,0.99310317]
[1727395228765,1.99198079,2633.0,2632.6,1.48933031]
[1727395228766,1.89952343,2632.9,2632.8,0.99310317]
[1727395228965,4.2039,2632.9,2632.7,0.99310317]
[1727395229165,1.89947709,2632.9,2632.8,0.99310317]
[1727395229365,1.89947709,2632.9,2632.7,0.99310317]
[1727395229568,0.99574882,2632.9,2632.8,1.15605564]
[1727395229774,0.99574882,2632.9,2632.8,2.64538595]
[1727395229962,0.99574882,2632.9,2632.8,0.99308577]
[1727395230272,0.99574882,2632.9,2632.8,2.14904678]
[1727395230957,1.40124882,2632.9,2632.8,2.14903696]
[1727395231163,1.40124882,2632.9,2632.8,2.64540817]
[1727395231359,5.19964882,2632.9,2632.8,2.64540817]
[1727395231565,4.2039,2632.9,2632.8,0.99287212]
[1727395231767,5.19946211,2632.9,2632.8,0.99287212]
[1727395231961,5.19946211,2632.9,2632.7,0.99287212]
[1727395231962,6.00164709,2632.9,2632.7,0.99287212]
[1727395232174,8.00177781,2632.8,2632.7,0.99287212]
[1727395233371,4.79397781,2632.8,2632.7,0.99287212]
[1727395234071,3.7984,2632.8,2632.7,0.99287212]
[1727395236062,1.40107781,2632.9,2632.7,0.99287212]
[1727395237371,1.40107781,2632.9,2632.6,0.99287212]
[1727395237674,1.40107781,2632.9,2632.7,0.99287212]
[1727395237869,1.40107781,2632.9,2632.6,0.99287212]
[1727395238173,0.4055,2632.9,2632.7,0.99287212]
[1727395238367,0.4055,2632.9,2632.7,1.81777212]
[1727395238864,0.99557781,2633.0,2632.7,1.81777212]
[1727395239064,0.99557781,2633.1,2632.8,5.35543585]
[1727395239266,0.99557781,2633.2,2632.9,1.15476373]
[1727395239469,0.99557781,2633.2,2633.0,2.56306771]
[1727395239663,0.99557781,2633.4,2633.1,1.40670398]
[1727395239864,0.99557781,2633.4,2633.1,1.82390398]
[1727395241977,1.38477781,2633.4,2633.1,1.82390398]
[1727395243164,1.38477781,2633.4,2633.1,0.99180398]
[1727395243363,4.20337781,2633.3,2632.9,2.89883429]
[1727395243565,4.50709781,2633.3,2633.0,0.99180398]
[1727395244272,4.20337781,2633.3,2633.0,0.99180398]
[1727395244475,0.99557781,2633.2,2633.0,0.99180398]
[1727395244867,0.4068,2633.1,2633.0,0.99180398]
[1727395245568,0.4068,2633.1,2632.9,1.40950398]
[1727395245777,0.4068,2633.1,2633.0,0.99180398]
[1727395245961,0.4068,2633.1,2632.9,1.40950398]
[1727395246368,0.4068,2633.1,2633.0,0.99180398]
[1727395248575,0.4068,2633.1,2633.0,2.14686655]
[1727395249079,0.4068,2633.1,2633.0,0.99180398]
[1727395249272,0.4068,2633.1,2632.9,1.40950398]
[1727395250263,0.4068,2633.1,2633.0,0.99180398]
[1727395250468,0.4068,2633.1,2632.9,1.40950398]
[1727395250868,0.4068,2633.1,2633.0,0.99180398]
[1727395251076,0.4068,2633.1,2633.0,2.14664596]
[1727395251370,0.99557781,2633.3,2633.0,2.56520514]
[1727395251578,1.77357781,2633.4,2633.1,0.99185783]
[1727395252375,1.77357781,2633.4,2633.2,0.4182]
[1727395252985,4.5756,2633.4,2633.3,0.4008]
[1727395253169,0.778,2633.4,2633.3,0.4008]
[1727395253370,5.57023279,2633.4,2633.3,0.4008]
[1727395253571,4.5756,2633.4,2633.3,0.4008]
[1727395254178,5.57020438,2633.4,2633.3,0.4008]
[1727395254579,4.79220438,2633.4,2633.3,0.4008]
[1727395255484,0.99460438,2633.4,2633.3,0.4008]
[1727395257873,5.19090438,2633.4,2633.3,0.4008]
[1727395258380,4.1963,2633.4,2633.0,1.41055783]
[1727395258580,5.01205302,2633.3,2633.0,1.82615783]
[1727395259490,0.99465302,2633.2,2633.0,0.8343]
[1727395259778,5.51137709,2633.3,2633.0,0.8343]
[1727395259779,5.01205302,2633.3,2633.0,1.82615783]
[1727395260375,0.99465302,2633.2,2633.0,1.82615783]
[1727395260977,0.99465302,2633.2,2633.0,2.12990783]
[1727395261178,0.3911,2633.1,2633.0,2.12990783]
[1727395261380,0.99465302,2633.2,2633.1,0.30374]
[1727395261582,0.99465302,2633.3,2633.2,0.30373]
[1727395261887,0.99465302,2633.4,2633.3,0.30372]
[1727395262077,0.99465302,2633.4,2633.3,0.69652]
[1727395262283,0.99465302,2633.4,2633.3,1.10432]
[1727395263985,0.99465302,2633.5,2633.4,0.30371]
[1727395264285,0.99465302,2633.5,2633.4,0.70121]
[1727395264888,4.61045302,2633.6,2633.5,0.3037]
[1727395265587,0.99465302,2633.7,2633.6,0.30369]
[1727395266294,0.99465302,2633.8,2633.5,0.99185783]
[1727395266488,0.99465302,2633.8,2633.6,0.30368]
[1727395266689,0.99465302,2633.8,2633.7,0.4221]
[1727395266881,0.99465302,2633.8,2633.7,5.6221]
[1727395267185,0.99465302,2633.8,2633.7,0.4221]
[1727395267583,0.99465302,2633.8,2633.6,5.2]
[1727395267788,0.3874,2633.7,2633.4,0.99185783]
[1727395268004,0.3863,2633.6,2633.4,0.99185783]
[1727395268188,0.7799,2633.6,2633.4,0.99185783]
[1727395268382,0.7799,2633.6,2633.3,6.89726783]
[1727395268682,0.7799,2633.6,2633.3,1.69726783]
[1727395268882,0.7799,2633.6,2633.2,2.83568783]
[1727395268883,1.77455302,2633.6,2633.2,2.83568783]
[1727395269082,1.77455302,2633.6,2633.2,2.53195783]
[1727395269291,2.07824302,2633.6,2633.2,2.53195783]
[1727395269678,1.77455302,2633.6,2633.2,2.53195783]
[1727395269887,1.77455302,2633.6,2633.3,0.99185783]
[1727395270290,1.77455302,2633.6,2633.3,0.30372]
[1727395270797,1.77455302,2633.6,2633.3,1.29557783]
[1727395271286,1.77455302,2633.6,2633.3,0.99185783]
[1727395271287,0.7799,2633.6,2633.3,0.99185783]
[1727395271483,0.7799,2633.6,2633.5,0.3037]
[1727395271692,0.7799,2633.6,2633.4,1.68275783]
[1727395272187,0.7799,2633.6,2633.4,1.37905783]
[1727395272692,0.7799,2633.6,2633.4,1.68276783]
[1727395272894,0.7799,2633.6,2633.3,0.99185783]
[1727395273094,2.07825302,2633.6,2633.3,0.99185783]
[1727395273389,3.2078,2633.4,2633.2,1.41395783]
[1727395273696,0.4242,2633.3,2633.2,1.41395783]
[1727395273888,0.8343,2633.3,2633.2,1.41395783]
[1727395274688,0.8343,2633.3,2633.2,0.4221]
[1727395274888,0.8343,2633.3,2633.2,1.41395783]
[1727395275094,0.8343,2633.3,2633.1,1.37735783]
[1727395275297,0.3848,2633.2,2633.0,1.29560783]
[1727395275510,0.3848,2633.2,2633.0,1.69410783]
[1727395276689,0.3848,2633.2,2632.9,6.49561783]
[1727395276895,3.2078,2633.0,2632.9,6.49561783]
[1727395277095,0.3848,2633.2,2632.9,0.99185783]
[1727395277492,0.3848,2633.2,2632.9,1.29562783]
[1727395277695,0.3848,2633.2,2632.9,0.99185783]
[1727395277897,0.3848,2633.2,2632.9,1.29562783]
[1727395278297,0.3848,2633.2,2633.0,0.99185783]
[1727395278603,1.37945302,2633.2,2632.9,1.29562783]
[1727395278898,0.3848,2633.2,2633.0,0.99185783]
[1727395279100,0.3848,2633.2,2632.9,1.29562783]
[1727395279297,1.37945302,2633.2,2632.9,1.29562783]
[1727395279497,1.37945302,2633.2,2633.0,0.99185783]
[1727395279698,1.37945302,2633.2,2632.9,0.99185783]
[1727395280100,1.37945302,2633.2,2632.9,1.29562783]
[1727395280304,1.37945302,2633.2,2633.0,0.99185783]
[1727395280698,3.7976,2633.1,2633.0,0.99185783]
[1727395281496,3.7976,2633.1,2632.9,0.99185783]
[1727395281703,8.41195302,2633.0,2632.7,0.99185783]
[1727395281898,8.41195302,2633.0,2632.6,0.99185783]
[1727395281899,0.30379,2632.7,2632.6,0.99185783]
[1727395282095,0.30379,2632.7,2632.0,0.30387]
[1727395282096,3.2078,2632.7,2632.0,0.30387]
[1727395282401,0.99474339,2632.3,2631.9,0.72028]
[1727395282596,0.4119,2632.2,2631.9,0.4164]
[1727395282895,3.6007,2632.1,2631.7,1.48933031]
[1727395283100,3.6007,2632.1,2631.7,0.3039]
[1727395283297,3.2078,2631.8,2631.5,0.18993063]
[1727395283694,3.2078,2631.8,2631.6,0.30391]
[1727395283896,3.2078,2631.8,2631.6,0.30392]
[1727395284198,3.2078,2631.8,2631.3,5.2]
[1727395284604,3.2078,2631.8,2631.5,0.30392]
[1727395285402,3.2078,2631.8,2631.3,5.2]
[1727395285609,1.38764339,2632.1,2631.5,0.30392]
[1727395285610,3.6007,2632.1,2631.5,0.30392]
[1727395286901,3.90456,2632.1,2631.4,0.30393]
[1727395287201,3.90456,2632.1,2631.5,0.30393]
[1727395288199,3.2078,2632.0,2631.5,0.30393]
[1727395288598,0.69676,2632.1,2631.5,0.30393]
[1727395288799,3.2078,2632.0,2631.3,5.2]
[1727395288998,0.30389,2631.9,2631.3,5.50395]
[1727395289198,0.4235,2631.8,2631.3,5.50395]
[1727395289612,0.3919,2631.7,2631.3,5.50395]
[1727395289904,0.3991,2631.6,2631.3,5.50395]
[1727395290103,0.3991,2631.6,2631.5,0.30393]
[1727395290307,0.3991,2631.6,2631.4,0.30393]
[1727395290513,0.3991,2631.6,2631.3,5.50394]
[1727395290711,0.3991,2631.6,2631.3,5.2]
[1727395293010,7.0078,2631.5,2631.1,0.30397]
[1727395293201,3.2078,2631.5,2631.1,0.30397]
[1727395294113,3.2078,2631.2,2630.7,0.089]
[1727395294302,3.51182,2630.8,2630.2,0.089]
[1727395294504,3.2078,2630.9,2630.0,1.2032]
[1727395294705,3.2078,2630.9,2630.3,0.30406]
[1727395295008,3.2078,2630.9,2630.1,0.30409]
[1727395295314,3.51184,2630.6,2630.0,1.5073]
[1727395295515,0.812,2630.5,2630.1,0.30409]
[1727395295808,0.812,2630.5,2630.0,1.5073]
[1727395296403,0.812,2630.5,2630.0,1.2032]
[1727395297513,0.812,2630.5,2630.0,1.5073]
[1727395297913,3.51181,2630.9,2630.2,0.30407]
[1727395298212,3.51181,2630.9,2630.0,1.2032]
[1727395298213,4.0105,2630.9,2630.1,3.2078]
[1727395298513,3.2078,2630.6,2630.1,0.30408]
[1727395300213,3.2078,2630.6,2630.0,1.2032]
[1727395300413,3.2078,2630.6,2630.1,0.30408]
[1727395300716,3.2078,2630.6,2630.2,0.30408]
[1727395301212,3.2078,2630.6,2630.0,1.2032]
[1727395301515,3.2078,2630.3,2630.0,1.2032]
[1727395301704,3.2078,2630.6,2630.1,0.30409]
[1727395302208,3.2078,2630.6,2630.0,1.2032]
[1727395303205,3.2078,2630.6,2630.2,0.30407]
[1727395303608,3.2078,2630.6,2630.1,0.30408]
[1727395304415,3.2078,2630.6,2630.0,1.2032]
[1727395304615,3.2078,2630.6,2630.1,0.30409]
[1727395306012,3.2078,2630.6,2630.2,0.30408]
[1727395306212,3.2078,2630.6,2630.0,1.2032]
[1727395306408,3.2078,2630.6,2630.1,0.30408]
[1727395306719,3.2078,2630.6,2630.2,5.2]
[1727395307509,0.30402,2630.7,2630.2,5.2]
[1727395307707,3.2078,2630.6,2630.2,5.2]
[1727395308005,3.51183,2630.6,2630.2,5.2]
[1727395308208,3.92414,2630.6,2630.2,5.2]
[1727395308611,0.4107,2630.5,2630.2,5.2]
[1727395308821,0.4003,2630.4,2630.2,5.2]
[1727395309017,3.2078,2630.3,2630.0,1.2032]
[1727395309616,3.2078,2630.3,2630.1,5.2]
[1727395311610,0.4003,2630.4,2630.1,5.2]
[1727395311814,0.4003,2630.4,2630.1,5.50409]
[1727395312517,0.4003,2630.4,2630.1,5.2]
[1727395312916,3.2078,2630.3,2630.1,5.2]
[1727395314527,3.2078,2630.3,2630.1,5.50409]
[1727395315322,3.2078,2630.3,2630.1,5.2]
[1727395315813,3.2078,2630.3,2630.1,5.50409]
[1727395316123,0.4003,2630.4,2630.1,5.50409]
[1727395317822,0.4003,2630.4,2630.1,0.30409]
[1727395318723,3.2078,2630.5,2630.0,1.2032]
[1727395318914,0.7992,2630.9,2630.4,0.30405]
[1727395319118,3.2078,2630.7,2630.5,0.3969]
[1727395319325,3.2078,2630.7,2630.0,0.8108]
[1727395319626,3.2078,2630.5,2630.1,0.70099]
[1727395320022,3.6199,2630.5,2630.2,0.30408]
[1727395320822,3.6199,2630.5,2630.1,0.70099]
[1727395321419,3.6199,2630.5,2630.1,0.3969]
[1727395322322,0.4077,2630.4,2630.1,0.3969]
[1727395322517,0.4077,2630.4,2630.1,0.70098]
[1727395323830,0.4077,2630.4,2630.2,5.2]
[1727395328831,0.4077,2630.4,2630.2,5.50407]
[1727395330735,0.4077,2630.4,2630.2,5.50408]
[1727395332934,3.2078,2630.3,2630.2,5.2]
[1727395335726,3.2078,2630.3,2630.1,0.70099]
[1727395335727,3.2078,2630.3,2630.1,0.3969]
[1727395336147,0.30408,2630.2,2630.1,0.3969]
[1727395336434,3.51187,2630.3,2630.0,0.8108]
[1727395336638,0.3907,2630.1,2630.0,0.8108]
[1727395337439,0.3907,2630.1,2629.8,0.4038]
[1727395337627,0.3907,2630.1,2629.8,2.67583031]
[1727395338141,0.3907,2630.1,2629.9,1.15515325]
[1727395338336,0.3907,2630.1,2629.8,2.67583031]
[1727395338642,0.3907,2630.1,2629.9,1.15518077]
[1727395338841,0.3907,2630.1,2629.8,2.67583031]
[1727395339038,0.3907,2630.1,2629.9,2.6444484]
[1727395339234,0.3907,2630.1,2630.0,1.15511809]
[1727395339739,0.3907,2630.1,2630.0,1.15590998]
[1727395339932,0.3907,2630.1,2630.0,1.15590684]
[1727395340134,1.38544339,2630.1,2630.0,2.64523715]
[1727395340532,5.18784339,2630.1,2630.0,2.64523715]
[1727395340840,5.18784339,2630.1,2629.9,1.98539102]
[1727395340841,0.3041,2630.0,2629.9,1.48933031]
[1727395341137,9.2242443,2630.0,2629.8,1.48933031]
[1727395341344,1.4960443,2629.9,2629.8,1.48933031]
[1727395341531,1.4960443,2629.9,2629.7,1.48933031]
[1727395341733,0.99720655,2629.8,2629.7,1.48933031]
[1727395341938,0.99720655,2629.8,2629.7,2.6425795]
[1727395342650,0.99720655,2629.8,2629.7,2.64222358]
[1727395342948,1.41110655,2630.0,2629.7,3.44242429]
[1727395343136,0.99720655,2630.0,2629.8,1.48993008]
[1727395343337,0.99720655,2630.0,2629.9,2.25340327]
[1727395343544,0.99720655,2630.2,2629.9,4.12711322]
[1727395343846,0.99720655,2630.2,2630.0,2.64240351]
[1727395344144,0.99720655,2630.2,2630.1,1.15289327]
[1727395345032,3.8024,2630.2,2630.0,1.48951024]
[1727395345338,1.39889549,2630.1,2629.9,1.87361024]
[1727395345532,1.39889549,2630.1,2630.0,1.15227395]
[1727395345835,1.8981443,2630.1,2629.9,0.3841]
[1727395346142,0.99679774,2630.0,2629.9,1.87361024]
[1727395346345,0.99679774,2630.0,2629.9,3.02594149]
[1727395346733,0.4021,2630.1,2629.9,3.02594149]
[1727395346734,1.39889774,2630.1,2629.9,3.02594149]
[1727395346938,1.39889774,2630.1,2629.9,1.87361024]
[1727395347544,0.99679774,2630.0,2629.9,2.17772024]
[1727395347840,1.4960443,2630.2,2629.9,2.17772024]
[1727395347841,0.99679774,2630.2,2630.1,0.30409]
[1727395348052,0.99679774,2630.3,2630.1,1.45617879]
[1727395348233,0.99679774,2630.3,2630.2,3.46329276]
[1727395348436,0.99679774,2630.3,2630.2,1.97468879]
[1727395348635,1.41639774,2630.3,2630.2,1.97468879]
[1727395348834,0.4196,2630.3,2630.2,3.46329276]
[1727395349037,1.41639774,2630.3,2630.2,1.97468879]
[1727395349447,0.99679774,2630.3,2630.2,2.27876879]
[1727395349647,0.99679774,2630.4,2630.2,3.76737276]
[1727395349848,0.99679774,2630.4,2630.2,2.31120397]
[1727395350148,0.99679774,2630.4,2630.3,0.4139]
[1727395353250,5.1234443,2630.5,2630.2,2.31120397]
[1727395353442,0.99662508,2630.3,2630.2,2.31120397]
[1727395353643,0.99662508,2630.3,2630.2,1.97429512]
[1727395353845,0.99662508,2630.3,2630.2,3.46289909]
[1727395354243,0.99662508,2630.3,2630.2,1.97429512]
[1727395354743,5.2976443,2630.3,2630.0,1.48860397]
[1727395354950,0.9966949,2630.1,2629.9,1.90170397]
[1727395355151,0.9966949,2630.0,2629.9,1.90170397]
[1727395355350,1.3973949,2630.0,2629.9,1.56507278]
[1727395355652,1.3973949,2630.0,2629.6,3.2078]
[1727395355653,6.0032543,2630.0,2629.6,1.48860397]
[1727395355859,3.2078,2629.7,2629.6,1.48860397]
[1727395356043,3.2078,2629.7,2629.6,2.64090083]
[1727395356242,3.2078,2629.7,2629.6,1.15229686]
[1727395356748,3.2078,2629.7,2629.6,1.1520029]
[1727395356942,0.99683274,2629.8,2629.6,1.1520029]
[1727395357138,0.99683274,2629.8,2629.5,1.48860397]
[1727395359241,0.99683274,2629.8,2629.4,1.79277397]
[1727395359449,3.2078,2629.7,2629.4,1.48860397]
[1727395359644,4.59353274,2629.7,2629.4,1.48860397]
[1727395359858,0.4139,2629.6,2629.4,1.48860397]
[1727395360052,0.4139,2629.6,2629.3,7.89250397]
[1727395360354,0.4139,2629.6,2629.4,1.15098729]
[1727395360541,0.4139,2629.6,2629.3,8.19668397]
[1727395360744,0.4139,2629.6,2629.4,1.15072322]
[1727395360947,0.4139,2629.6,2629.3,8.19668397]
[1727395361148,0.4139,2629.6,2629.4,1.15076014]
[1727395361351,0.4139,2629.6,2629.3,8.19668397]
[1727395361551,0.4139,2629.6,2629.4,1.1505968]
[1727395361862,0.3889,2629.7,2629.4,0.30417]
[1727395362063,0.3889,2629.7,2629.4,1.79277397]
[1727395362447,0.3889,2629.7,2629.4,0.30417]
[1727395362652,0.3889,2629.7,2629.5,5.2]
[1727395362952,0.3889,2629.7,2629.5,5.50416]
[1727395363350,1.41273274,2629.8,2629.5,5.50416]
[1727395363351,0.4159,2629.8,2629.5,5.50416]
[1727395363954,4.61233274,2630.0,2629.6,0.30415]
[1727395364155,4.61233274,2630.0,2629.7,1.2176]
[1727395365259,4.61233274,2630.0,2629.7,1.52173]
[1727395365661,3.2078,2630.0,2629.7,1.52173]
[1727395365961,4.20463274,2630.0,2629.5,6.68860397]
[1727395366263,4.20463274,2630.0,2629.6,2.3620385]
[1727395366460,3.2078,2630.0,2629.6,1.51614]
[1727395367464,3.2078,2630.0,2629.7,0.30413]
[1727395367660,1.42023274,2630.1,2629.7,0.30413]
[1727395368666,1.42023274,2630.1,2629.6,6.21254397]
[1727395368968,1.42023274,2630.1,2629.7,0.30413]
[1727395369363,1.42023274,2630.1,2629.6,3.00474397]
[1727395369571,3.2078,2630.0,2629.6,3.00474397]
[1727395369772,1.42023274,2630.1,2629.7,0.30414]
[1727395370159,3.2078,2630.0,2629.7,0.30414]
[1727395370469,1.42023274,2630.1,2629.7,0.30414]
[1727395371374,3.2078,2630.0,2629.7,0.30414]
[1727395371666,1.42023274,2630.1,2629.7,0.30414]
[1727395372658,1.42023274,2630.1,2629.8,0.30412]
[1727395372859,1.39983274,2630.2,2629.9,0.30411]
[1727395373067,1.39983274,2630.2,2630.0,1.2118]
[1727395373568,1.39313274,2630.6,2630.3,0.30407]
[1727395373760,0.3963,2630.6,2630.4,0.4125]
[1727395374758,1.40293274,2630.7,2630.4,0.71655]
[1727395374964,1.40293274,2630.7,2630.5,0.8237]
[1727395375272,0.4061,2630.7,2630.5,0.8237]
[1727395376073,0.99683274,2630.8,2630.5,0.8237]
[1727395376267,1.38833274,2630.9,2630.7,0.30402]
[1727395376471,1.38833274,2630.9,2630.8,0.3822]
[1727395377061,0.99683274,2630.9,2630.8,0.3822]
[1727395379479,0.4019,2631.0,2630.8,0.3822]
[1727395379480,1.39873274,2631.0,2630.8,0.3822]
[1727395379681,0.99683274,2630.9,2630.8,0.3822]
[1727395379868,1.39873274,2631.0,2630.8,0.3822]
[1727395380382,0.99683274,2630.9,2630.8,0.3822]
[1727395380581,0.99683274,2630.9,2630.7,5.50402]
[1727395380784,0.99683274,2630.9,2630.8,0.4196]
[1727395383192,1.70272274,2631.0,2630.8,0.4196]
[1727395384288,1.39873274,2631.0,2630.8,0.4196]
[1727395385190,3.2078,2630.9,2630.7,0.30402]
[1727395386392,4.20463274,2630.9,2630.7,0.30402]
[1727395386895,3.2078,2630.9,2630.7,0.30402]
[1727395388092,3.2078,2630.9,2630.8,0.30401]
[1727395388686,0.3915,2631.1,2630.7,5.2]
[1727395388887,0.3915,2631.1,2630.9,0.30399]
[1727395389294,0.3915,2631.1,2631.0,0.3972]
[1727395389592,0.99683274,2631.5,2631.3,0.30395]
[1727395389794,5.79657878,2631.6,2631.4,0.70113]
[1727395389991,5.79657878,2631.6,2631.4,0.3972]
[1727395390190,5.37537878,2631.6,2631.5,3.66633]
[1727395390390,0.4212,2631.9,2631.5,10.3702]
[1727395390592,3.2078,2632.2,2631.8,2.97]
[1727395390791,3.2078,2632.2,2631.9,0.72248]
[1727395390992,3.2078,2632.2,2631.9,0.4186]
[1727395392493,3.51165,2632.2,2631.9,0.4186]
[1727395392892,6.93743,2632.2,2631.4,4.301]
[1727395393095,3.2078,2631.8,2631.6,0.30392]
[1727395393494,0.30387,2632.0,2631.7,0.4143]
[1727395393897,3.2078,2631.8,2631.7,0.4143]
[1727395395296,3.2078,2631.8,2631.4,1.331]
[1727395395496,3.2078,2631.8,2631.4,1.63494]
[1727395395497,3.5938,2631.8,2631.4,1.63494]
[1727395395894,3.5938,2631.8,2631.4,1.331]
[1727395396094,3.89769,2631.8,2631.4,4.301]
[1727395396694,3.89769,2631.8,2631.4,2.97]
[1727395397396,3.2078,2631.5,2631.0,6.1778]
[1727395397604,0.70675,2631.4,2631.0,6.1778]
[1727395397802,3.2078,2631.2,2631.0,2.97]
[1727395397998,3.2078,2631.2,2630.7,1.48860397]
[1727395398202,0.30401,2630.8,2630.7,1.48860397]
[1727395398504,3.5118,2630.9,2630.7,1.48860397]
[1727395398705,4.50761,2630.8,2630.7,1.48860397]
[1727395400397,4.50761,2630.8,2630.0,3.3631]
[1727395400398,13.1736,2630.8,2630.0,0.089]
[1727395400599,3.2078,2630.1,2629.6,2.97]
[1727395400901,0.3901,2630.0,2629.6,2.97]
[1727395402299,3.2078,2629.8,2629.6,2.97]
[1727395403607,3.2078,2629.9,2629.6,2.97]
[1727395408213,3.2078,2629.9,2629.5,1.91220397]
[1727395410208,3.2078,2629.9,2629.5,0.4236]
[1727395410614,0.6942,2630.0,2629.5,0.4236]
[1727395410819,3.2078,2629.9,2629.5,0.4236]
[1727395415919,0.6942,2630.0,2629.5,0.4236]
[1727395415920,0.69421,2630.0,2629.5,0.4236]
[1727395416121,3.2078,2629.9,2629.5,0.4236]
[1727395416417,0.69421,2630.0,2629.5,0.4236]
[1727395417123,3.2078,2629.9,2629.5,0.4236]
[1727395418028,0.3901,2630.0,2629.5,0.4236]
[1727395418323,0.3901,2630.0,2629.5,0.72775]
[1727395419226,0.6942,2630.0,2629.5,0.72775]
[1727395419428,0.3901,2630.0,2629.5,0.72775]
[1727395419626,0.3901,2630.0,2629.5,0.4236]
[1727395419823,0.3901,2630.0,2629.6,0.30415]
[1727395420122,0.6942,2630.0,2629.5,0.72776]
[1727395420623,0.3901,2630.0,2629.6,0.30414]
[1727395420924,0.3901,2630.0,2629.5,0.72775]
[1727395421320,0.3901,2630.0,2629.6,0.30414]
[1727395422629,0.3901,2630.0,2629.7,0.30414]
[1727395423135,0.3901,2630.0,2629.6,0.30414]
[1727395423832,0.6942,2630.0,2629.5,0.72775]
[1727395424029,3.2078,2629.9,2629.6,0.30414]
[1727395424236,0.3901,2630.0,2629.7,0.30413]
[1727395424535,0.3901,2630.0,2629.6,0.30414]
[1727395425235,0.3901,2630.0,2629.7,0.30413]
[1727395425824,0.3901,2630.0,2629.6,0.30414]
[1727395426024,0.3901,2630.0,2629.7,0.30413]
[1727395426427,3.2078,2629.8,2629.3,0.4197]
[1727395426641,3.2078,2629.8,2629.4,0.30416]
[1727395427139,3.2078,2629.8,2629.3,0.72387]
[1727395427433,0.30411,2629.9,2629.4,0.30417]
[1727395427640,3.2078,2629.8,2629.4,0.30417]
[1727395428233,3.2078,2629.8,2629.5,0.30416]
[1727395428844,3.2078,2629.8,2629.4,0.30416]
[1727395429545,3.2078,2629.8,2629.5,0.30416]
[1727395430241,3.3601,2630.0,2629.6,0.30415]
[1727395430440,3.3601,2630.0,2629.5,0.30416]
[1727395430441,3.2078,2629.9,2629.5,0.30416]
[1727395430641,0.6942,2630.0,2629.5,0.30416]
[1727395430834,0.6942,2630.0,2629.4,0.30417]
[1727395430835,0.30412,2629.9,2629.4,0.30417]
[1727395431039,3.2078,2629.9,2629.5,0.30416]
[1727395431241,0.69421,2630.0,2629.5,0.30416]
[1727395433434,0.3901,2630.0,2629.5,0.30416]
[1727395433636,0.3901,2630.0,2629.3,3.3897]
[1727395433836,0.3901,2630.0,2629.7,0.30413]
[1727395438037,0.3901,2630.0,2629.8,0.30412]
[1727395438245,0.3901,2630.0,2629.6,0.7871]
[1727395438645,0.3901,2630.0,2629.8,0.30412]
[1727395439552,0.3901,2630.0,2629.7,0.30413]
[1727395440444,0.3901,2630.0,2629.8,0.30412]
[1727395440642,0.3901,2630.0,2629.9,0.30411]